bitfinex/quotes_SOLUSD_20250508
["timestamp","ask_amount","ask_price","bid_price","bid_amount"]
[1746720385672,26.76,160.27,160.26,36.43778616]
[1746720385870,6.23835625,160.3,160.26,36.43778616]
[1746720386074,6.23835625,160.3,160.27,36.43778616]
[1746720386277,6.23792583,160.31,160.28,36.43778616]
[1746720386652,6.23752495,160.32,160.28,36.43778616]
[1746720386953,6.23752495,160.32,160.31,36.43778616]
[1746720387170,26.76,160.33,160.31,36.43778616]
[1746720387352,234.1,160.35,160.32,36.43778616]
[1746720387557,136.4,160.36,160.34,36.43778616]
[1746720387773,6.23560102,160.37,160.34,36.43778616]
[1746720388093,42.67338718,160.37,160.32,36.43778616]
[1746720388378,36.43778616,160.33,160.22,50.0]
[1746720388670,18.64964886,160.35,160.25,36.43778616]
[1746720388671,6.23869237,160.29,160.25,36.43778616]
[1746720388882,6.23869237,160.29,160.26,36.43778616]
[1746720389587,6.23869237,160.29,160.18,15.60692856]
[1746720389588,36.43778616,160.27,160.17,12.73729605]
[1746720389883,18.79181043,160.28,160.16,1.5621]
[1746720390086,36.43778616,160.21,160.16,37.99988616]
[1746720390270,36.43778616,160.2,160.12,56.4943]
[1746720390471,36.43778616,160.18,160.13,36.43778616]
[1746720390780,18.64964886,160.22,160.08,50.0]
[1746720390781,21.84632668,160.21,160.08,50.0]
[1746720390984,36.43778616,160.13,160.08,36.43778616]
[1746720391277,0.14216157,160.19,160.09,36.43778616]
[1746720391457,0.14216157,160.19,160.08,36.43778616]
[1746720391458,36.43778616,160.13,160.08,36.43778616]
[1746720391650,0.14216157,160.19,160.11,36.43778616]
[1746720391867,36.43778616,160.15,160.1,36.43778616]
[1746720392065,0.14216157,160.19,160.1,36.43778616]
[1746720392266,18.64964886,160.2,160.11,36.43778616]
[1746720392474,36.43778616,160.16,160.11,36.43778616]
[1746720392767,6.24414611,160.15,160.11,36.43778616]
[1746720392979,42.68193227,160.15,160.07,6.24700298]
[1746720393193,32.98414611,160.15,160.05,1.5621]
[1746720393368,32.98414611,160.15,160.09,36.43778616]
[1746720393562,32.98414611,160.15,160.08,36.43778616]
[1746720393790,32.98414611,160.15,160.09,36.43778616]
[1746720394088,36.43778616,160.14,160.09,36.43778616]
[1746720394278,36.43778616,160.13,160.08,36.43778616]
[1746720394463,36.43778616,160.12,160.07,36.43778616]
[1746720394662,36.43778616,160.12,160.05,7.81005206]
[1746720394862,6.24544348,160.12,160.08,36.43778616]
[1746720395280,6.24544348,160.12,160.06,6.24756008]
[1746720395281,6.24502112,160.13,160.09,36.43778616]
[1746720395482,26.74,160.15,160.1,36.43778616]
[1746720395483,32.98442595,160.15,160.1,36.43778616]
[1746720395786,69.42221211,160.15,160.1,36.43778616]
[1746720395988,36.43778616,160.14,160.09,36.43778616]
[1746720396188,36.43778616,160.13,160.09,36.43778616]
[1746720396383,36.43778616,160.13,160.08,36.43778616]
[1746720396896,6.24531601,160.12,160.08,36.43778616]
[1746720397391,63.17778616,160.15,160.06,0.14216157]
[1746720397593,36.43778616,160.13,160.09,36.43778616]
[1746720397767,36.43778616,160.13,160.08,36.43778616]
[1746720398299,36.43778616,160.14,160.09,36.43778616]
[1746720398473,32.984436,160.15,160.1,36.43778616]
[1746720398781,32.984436,160.15,160.11,36.43778616]
[1746720399664,32.984436,160.15,160.12,36.43778616]
[1746720399859,32.984436,160.15,160.11,36.43778616]
[1746720400079,36.43778616,160.14,160.1,36.43778616]
[1746720400364,36.43778616,160.13,160.09,36.43778616]
[1746720400694,172.83778616,160.14,160.09,36.43778616]
[1746720400886,6.24492599,160.13,160.1,36.43778616]
[1746720401068,136.4,160.14,160.11,36.43778616]
[1746720401373,142.64457743,160.14,160.11,36.43778616]
[1746720401574,26.74,160.15,160.13,36.43778616]
[1746720401789,136.4,160.18,160.14,36.43778616]
[1746720401967,136.4,160.18,160.12,0.14216157]
[1746720402175,136.4,160.18,160.16,36.43778616]
[1746720402368,240.18226475,160.2,160.12,0.14216157]
[1746720402569,26.76,160.21,160.19,36.43778616]
[1746720402769,26.76,160.21,160.2,36.43778616]
[1746720403073,136.4,160.26,160.2,86.57994773]
[1746720403264,136.4,160.26,160.25,36.43778616]
[1746720404586,136.4,160.26,160.21,0.14216157]
[1746720404793,136.4,160.26,160.25,36.43778616]
[1746720407002,6.24102852,160.23,160.19,36.43778616]
[1746720407185,26.76,160.28,160.22,36.43778616]
[1746720407385,6.23947089,160.27,160.26,36.43778616]
[1746720407588,6.23920423,160.28,160.26,36.43778616]
[1746720407780,6.23920423,160.28,160.24,36.43778616]
[1746720407781,26.38,160.34,160.27,36.43778616]
[1746720407980,62.81778616,160.34,160.29,36.43778616]
[1746720408206,62.77495858,160.34,160.29,36.43778616]
[1746720409002,62.77495858,160.34,160.3,36.43778616]
[1746720409003,26.33717242,160.34,160.3,36.43778616]
[1746720409181,26.33717242,160.34,160.31,36.43778616]
[1746720409389,26.33717242,160.34,160.33,36.43778616]
[1746720409591,136.4,160.38,160.33,36.43778616]
[1746720409796,260.32,160.4,160.29,50.14216157]
[1746720409797,260.32,160.4,160.37,36.43778616]
[1746720410391,136.4,160.44,160.39,36.43778616]
[1746720410708,136.4,160.44,160.38,26.0]
[1746720410892,26.38,160.46,160.43,36.43778616]
[1746720411087,26.38,160.46,160.45,36.43778616]
[1746720411285,233.92,160.5,160.45,36.43778616]
[1746720411492,26.38,160.52,160.49,36.43778616]
[1746720411688,26.38,160.52,160.5,36.43778616]
[1746720411887,249.38700466,160.6,160.51,36.43778616]
[1746720411888,26.38,160.58,160.51,36.43778616]
[1746720412097,26.38,160.58,160.55,36.43778616]
[1746720412294,6.22587473,160.62,160.57,36.43778616]
[1746720412495,36.43778616,160.63,160.57,36.43778616]
[1746720412690,6.2247121,160.65,160.53,26.0]
[1746720412691,36.43778616,160.58,160.53,26.0]
[1746720412902,36.43778616,160.55,160.49,50.0]
[1746720413212,36.43778616,160.56,160.47,1.6369]
[1746720413405,36.43778616,160.48,160.39,86.43778616]
[1746720413610,36.43778616,160.43,160.38,1.5486]
[1746720413815,36.43778616,160.41,160.34,50.0]
[1746720414121,18.64964886,160.49,160.4,36.43778616]
[1746720414290,36.43778616,160.43,160.36,50.0]
[1746720414488,36.43778616,160.43,160.37,36.43778616]
[1746720414798,42.67129216,160.43,160.38,26.0]
[1746720415105,36.43778616,160.41,160.36,36.43778616]
[1746720415312,36.43778616,160.42,160.37,36.43778616]
[1746720415527,36.43778616,160.41,160.36,36.43778616]
[1746720415723,36.43778616,160.41,160.37,26.0]
[1746720415931,36.43778616,160.41,160.36,36.43778616]
[1746720416136,36.43778616,160.39,160.34,36.43778616]
[1746720416433,36.43778616,160.35,160.29,86.43778616]
[1746720416604,36.43778616,160.36,160.3,36.43778616]
[1746720416804,6.23674691,160.34,160.3,36.43778616]
[1746720417126,36.43778616,160.32,160.27,36.43778616]
[1746720417427,21.82861419,160.34,160.25,51.6084]
[1746720417644,15.58866959,160.38,160.3,26.0]
[1746720417806,10.0,160.46,160.25,51.6084]
[1746720417807,36.43778616,160.36,160.31,36.43778616]
[1746720418002,36.43778616,160.35,160.3,36.43778616]
[1746720418227,36.43778616,160.34,160.29,36.43778616]
[1746720418409,21.82453077,160.37,160.3,36.43778616]
[1746720418610,6.23558022,160.37,160.32,36.43778616]
[1746720418817,52.02412878,160.4,160.35,36.43778616]
[1746720419109,36.43778616,160.36,160.28,50.0]
[1746720419315,36.43778616,160.33,160.28,36.43778616]
[1746720419529,36.43778616,160.31,160.26,36.43778616]
[1746720419838,36.43778616,160.31,160.26,62.43778616]
[1746720420051,36.43778616,160.29,160.22,50.0]
[1746720420205,36.43778616,160.28,160.22,50.0]
[1746720420410,36.43778616,160.25,160.2,36.43778616]
[1746720420707,36.43778616,160.27,160.22,36.43778616]
[1746720420912,6.24063904,160.24,160.2,62.43778616]
[1746720421336,6.24063904,160.24,160.2,36.43778616]
[1746720421545,6.24063904,160.24,160.21,36.43778616]
[1746720422043,6.24063904,160.24,160.23,36.43778616]
[1746720422209,6.24063904,160.24,160.21,26.0]
[1746720422543,6.24063904,160.24,160.22,36.43778616]
[1746720422911,6.23986022,160.26,160.23,36.43778616]
[1746720423315,55.08743502,160.32,160.25,36.43778616]
[1746720423316,6.23791404,160.31,160.25,36.43778616]
[1746720423642,6.23752001,160.33,160.3,36.43778616]
[1746720423937,32.59676448,160.34,160.32,62.43778616]
[1746720424239,36.43778616,160.37,160.33,36.43778616]
[1746720424240,6.23558022,160.37,160.33,36.43778616]
[1746720424408,6.23558022,160.37,160.32,26.0]
[1746720424409,6.23558022,160.37,160.35,36.43778616]
[1746720424614,6.23558022,160.37,160.36,36.43778616]
[1746720424841,6.23558022,160.37,160.34,26.0]
[1746720425133,36.43778616,160.35,160.29,36.43778616]
[1746720425330,18.64964886,160.37,160.29,36.43778616]
[1746720425331,21.82316997,160.38,160.34,36.43778616]
[1746720425719,6.23519142,160.38,160.33,36.43778616]
[1746720426032,36.43778616,160.34,160.3,26.0]
[1746720426331,36.43778616,160.34,160.24,36.43778616]
[1746720426332,36.43778616,160.31,160.23,36.43778616]
[1746720426535,36.43778616,160.28,160.23,36.43778616]
[1746720426722,36.43778616,160.26,160.21,36.43778616]
[1746720426927,6.2402496,160.25,160.19,51.5653]
[1746720427224,36.43778616,160.26,160.21,36.43778616]
[1746720427425,36.43778616,160.24,160.19,1.5653]
[1746720427630,6.24019148,160.26,160.2,36.43778616]
[1746720427818,6.24019148,160.26,160.22,36.43778616]
[1746720428011,6.24019148,160.26,160.15,6.3805]
[1746720428012,36.43778616,160.23,160.18,36.43778616]
[1746720428217,21.83984204,160.26,160.15,6.3805]
[1746720428218,36.43778616,160.21,160.16,36.43778616]
[1746720428914,42.68037308,160.19,160.14,36.43778616]
[1746720429324,42.68037308,160.19,160.14,62.43778616]
[1746720429536,36.43778616,160.18,160.14,26.0]
[1746720429728,36.43778616,160.18,160.11,6.24566763]
[1746720429729,36.43778616,160.16,160.11,36.43778616]
[1746720429941,36.43778616,160.15,160.1,36.43778616]
[1746720430136,6.24258692,160.19,160.13,36.43778616]
[1746720430329,42.68037308,160.19,160.14,36.43778616]
[1746720430718,42.68037308,160.19,160.1,50.0]
[1746720430949,6.24258692,160.19,160.15,36.43778616]
[1746720431147,6.24102852,160.23,160.16,36.43778616]
[1746720431318,6.24102852,160.23,160.18,36.43778616]
[1746720431513,6.24102852,160.23,160.19,36.43778616]
[1746720431734,26.36,160.24,160.21,36.43778616]
[1746720431933,26.36,160.24,160.23,62.43778616]
[1746720432130,26.36,160.3,160.23,62.43778616]
[1746720432422,32.59838775,160.3,160.26,36.43778616]
[1746720433221,32.59838775,160.3,160.23,32.24098847]
[1746720433445,69.03617391,160.3,160.25,26.0]
[1746720433838,69.03617391,160.3,160.25,62.43778616]
[1746720434033,26.36,160.3,160.28,36.43778616]
[1746720434438,239.97790391,160.32,160.29,36.43778616]
[1746720434640,239.97790391,160.32,160.28,36.43778616]
[1746720435439,239.97790391,160.32,160.27,62.43778616]
[1746720435647,239.97790391,160.32,160.28,36.43778616]
[1746720436664,233.74,160.32,160.28,36.43778616]
[1746720436944,6.23721756,160.33,160.28,36.43778616]
[1746720437150,42.6747324,160.34,160.29,36.43778616]
[1746720437641,6.23641136,160.35,160.31,36.43778616]
[1746720437851,6.23641136,160.35,160.3,62.43778616]
[1746720438239,42.67419752,160.35,160.3,26.0]
[1746720438442,36.43778616,160.34,160.3,26.0]
[1746720438754,36.43778616,160.33,160.3,26.0]
[1746720438934,36.43778616,160.31,160.27,26.0]
[1746720439134,6.23830318,160.3,160.28,26.0]
[1746720439340,36.43778616,160.29,160.24,36.43778616]
[1746720439533,36.43778616,160.28,160.23,36.43778616]
[1746720439757,36.43778616,160.28,160.2,50.0]
[1746720439929,36.43778616,160.26,160.2,50.0]
[1746720440131,36.43778616,160.26,160.21,36.43778616]
[1746720440360,36.43778616,160.26,160.21,62.43778616]
[1746720440549,36.43778616,160.26,160.21,36.43778616]
[1746720441247,136.4,160.27,160.23,36.43778616]
[1746720441633,136.4,160.27,160.22,36.57994773]
[1746720441634,179.07730895,160.27,160.22,36.57994773]
[1746720441952,36.43778616,160.23,160.16,56.1853]
[1746720442156,36.43778616,160.21,160.16,42.62308616]
[1746720442351,172.83778616,160.2,160.14,56.24444174]
[1746720442534,136.4,160.2,160.17,26.0]
[1746720443053,136.4,160.2,160.19,26.0]
[1746720443235,136.4,160.19,160.14,92.6822279]
[1746720443433,36.43778616,160.17,160.12,50.0]
[1746720443754,36.43778616,160.17,160.12,36.43778616]
[1746720443935,136.4,160.18,160.14,36.43778616]
[1746720444249,6.24144489,160.22,160.17,36.43778616]
[1746720444559,136.4,160.23,160.21,36.43778616]
[1746720445131,136.4,160.23,160.22,36.43778616]
[1746720445330,136.4,160.23,160.2,26.0]
[1746720445549,136.4,160.23,160.21,36.43778616]
[1746720445762,168.65976909,160.27,160.22,36.43778616]
[1746720445955,205.09737545,160.27,160.22,36.43778616]
[1746720446334,168.65958929,160.27,160.22,36.43778616]
[1746720446554,36.43778616,160.23,160.18,26.0]
[1746720446731,36.43778616,160.22,160.17,36.43778616]
[1746720446930,36.43778616,160.21,160.17,26.0]
[1746720447150,155.04964886,160.25,160.18,62.43778616]
[1746720447151,36.43778616,160.23,160.18,62.43778616]
[1746720447457,179.0781434,160.25,160.2,36.43778616]
[1746720447639,36.43778616,160.24,160.19,36.43778616]
[1746720447952,36.43778616,160.23,160.18,62.43778616]
[1746720448156,36.43778616,160.22,160.18,26.0]
[1746720448354,158.24098126,160.25,160.16,26.0]
[1746720448355,36.43778616,160.2,160.16,26.0]
[1746720448543,36.43778616,160.2,160.15,36.43778616]
[1746720448857,136.4,160.23,160.17,36.43778616]
[1746720449190,36.43778616,160.18,160.12,36.43778616]
[1746720449353,36.43778616,160.16,160.09,50.0]
[1746720449653,36.43778616,160.15,160.11,26.0]
[1746720449854,36.43778616,160.15,160.11,62.43778616]
[1746720450242,34.25635091,160.19,160.13,36.43778616]
[1746720450243,36.43778616,160.18,160.13,36.43778616]
[1746720450575,36.43778616,160.16,160.12,36.43778616]
[1746720450732,36.43778616,160.16,160.12,62.43778616]
[1746720450934,36.43778616,160.14,160.12,26.0]
[1746720451228,6.24492599,160.13,160.12,26.0]
[1746720451543,6.24492599,160.13,160.1,36.43778616]
[1746720451744,42.68243781,160.14,160.1,36.43778616]
[1746720451945,6.24465165,160.14,160.06,6.24756809]
[1746720452144,6.24465165,160.14,160.1,36.43778616]
[1746720452352,6.24465165,160.14,160.06,6.24756809]
[1746720452353,42.68243781,160.14,160.09,26.0]
[1746720452545,42.68243781,160.14,160.09,36.43778616]
[1746720453254,6.24465165,160.14,160.09,62.43778616]
[1746720453472,42.68243781,160.14,160.09,62.43778616]
[1746720454463,42.68243781,160.14,160.09,26.0]
[1746720454644,42.68243781,160.14,160.07,6.24721139]
[1746720454645,172.83778616,160.13,160.08,36.43778616]
[1746720454841,136.4,160.12,160.1,26.0]
[1746720455033,136.4,160.12,160.11,36.43778616]
[1746720455562,136.4,160.12,160.11,42.68349223]
[1746720455864,136.4,160.12,160.11,36.43778616]
[1746720456062,136.4,160.12,160.11,42.68349223]
[1746720456361,136.4,160.12,160.11,36.43778616]
[1746720456688,136.4,160.12,160.11,42.68349223]
[1746720456956,136.4,160.17,160.13,26.0]
[1746720457158,6.2435296,160.17,160.13,62.43778616]
[1746720457362,6.2435296,160.17,160.13,36.43778616]
[1746720457564,6.2435296,160.17,160.14,36.43778616]
[1746720458261,6.2435296,160.17,160.13,36.43778616]
[1746720458561,6.2435296,160.17,160.12,26.0]
[1746720458746,6.2435296,160.17,160.14,36.43778616]
[1746720459261,6.2435296,160.17,160.12,36.43778616]
[1746720459443,6.2435296,160.17,160.13,36.43778616]
[1746720459642,6.2435296,160.17,160.11,26.0]
[1746720459855,36.43778616,160.12,160.04,50.0]
[1746720460165,36.43778616,160.09,160.03,7.81518905]
[1746720460461,36.43778616,160.05,159.98,57.7234]
[1746720460763,36.43778616,160.05,160.0,36.43778616]
[1746720460964,36.43778616,160.04,159.98,83.7234]
[1746720461171,6.24882834,160.03,159.99,36.43778616]
[1746720461361,6.24804748,160.05,160.01,36.43778616]
[1746720461547,36.43778616,160.04,159.99,36.43778616]
[1746720462149,6.24804748,160.05,159.98,63.97405765]
[1746720462445,6.24804748,160.05,159.96,36.43778616]
[1746720462446,36.43778616,160.0,159.96,36.43778616]
[1746720462766,18.64964886,160.04,159.96,62.43778616]
[1746720462953,36.43778616,160.0,159.96,62.43778616]
[1746720463152,36.43778616,160.01,159.96,62.43778616]
[1746720463370,15.62011871,160.05,159.96,26.0]
[1746720463543,36.43778616,160.02,159.97,36.43778616]
[1746720463870,6.24804748,160.05,160.01,36.43778616]
[1746720464060,42.68505298,160.07,160.02,36.43778616]
[1746720464373,26.02,160.11,160.06,36.43778616]
[1746720464578,26.02,160.11,160.1,36.43778616]
[1746720464750,36.43778616,160.13,160.08,36.43778616]
[1746720464950,42.68271215,160.13,160.06,26.0]
[1746720465150,42.68242563,160.14,160.09,36.43778616]
[1746720465660,276.62187156,160.16,160.11,36.43778616]
[1746720465858,240.1840854,160.16,160.11,36.43778616]
[1746720466060,233.94,160.16,160.12,36.43778616]
[1746720466251,276.62164106,160.16,160.09,0.14216157]
[1746720466451,36.43778616,160.14,160.06,6.24753867]
[1746720466773,36.43778616,160.11,160.06,62.43778616]
[1746720467376,6.24609618,160.1,160.06,26.0]
[1746720467552,42.68388234,160.1,160.06,26.0]
[1746720467751,6.24609618,160.1,160.06,62.43778616]
[1746720468874,6.24609618,160.1,160.06,36.43778616]
[1746720469064,42.68388234,160.1,160.05,36.43778616]
[1746720469464,36.43778616,160.09,160.03,27.6323]
[1746720469766,36.43778616,160.08,160.03,36.43778616]
[1746720469974,36.43778616,160.09,160.04,36.43778616]
[1746720470957,18.64964886,160.12,160.02,26.0]
[1746720470958,41.61188454,160.14,160.06,36.43778616]
[1746720471260,36.43778616,160.11,160.06,36.43778616]
[1746720471456,172.83778616,160.1,160.05,62.43778616]
[1746720471652,36.43778616,160.08,160.0,6.24987292]
[1746720471868,36.43778616,160.05,160.0,36.43778616]
[1746720472378,36.43778616,160.05,160.0,62.43778616]
[1746720472563,36.43778616,160.05,160.0,36.43778616]
[1746720472761,36.43778616,160.04,159.99,36.43778616]
[1746720473080,36.43778616,160.04,159.96,36.43778616]
[1746720473081,42.68739555,160.01,159.96,36.43778616]
[1746720473265,42.68739555,160.01,159.95,6.25162101]
[1746720473266,36.43778616,160.0,159.95,36.43778616]
[1746720473474,42.68739555,160.01,159.96,36.43778616]
[1746720473657,36.43778616,160.0,159.95,36.43778616]
[1746720473858,36.43778616,160.0,159.93,6.25263462]
[1746720474073,36.43778616,160.0,159.96,36.43778616]
[1746720474279,42.68739555,160.01,159.96,36.43778616]
[1746720474586,6.24960939,160.01,159.97,36.43778616]
[1746720474956,42.68739555,160.01,159.97,36.43778616]
[1746720475882,42.68739555,160.01,159.95,26.0]
[1746720476068,36.43778616,160.0,159.95,62.43778616]
[1746720476261,6.24960939,160.01,159.95,26.0]
[1746720476457,36.43778616,159.99,159.92,1.5652]
[1746720476768,36.43778616,159.96,159.89,6.1252]
[1746720476977,36.43778616,159.96,159.91,36.43778616]
[1746720477175,42.68973989,159.95,159.9,36.43778616]
[1746720477373,6.25195373,159.95,159.91,36.43778616]
[1746720477564,36.43778616,159.94,159.9,36.43778616]
[1746720477763,36.43778616,159.93,159.84,42.93628616]
[1746720477977,21.88183806,159.95,159.89,36.43778616]
[1746720477978,36.43778616,159.94,159.89,36.43778616]
[1746720478283,6.25165855,159.96,159.92,36.43778616]
[1746720478585,6.25165855,159.96,159.86,50.14216157]
[1746720478586,42.68944471,159.96,159.86,50.0]
[1746720478887,142.65047812,159.99,159.95,36.43778616]
[1746720479212,6.25117209,159.97,159.93,36.43778616]
[1746720479488,136.4,159.99,159.96,36.43778616]
[1746720479661,136.4,159.99,159.92,68.6908865]
[1746720479662,25.7,160.01,159.97,36.43778616]
[1746720479860,172.83778616,160.06,160.0,36.43778616]
[1746720480076,172.83778616,160.06,160.01,36.43778616]
[1746720480278,36.43778616,160.03,159.95,26.0]
[1746720480472,36.43778616,160.01,159.96,36.43778616]
[1746720480677,36.43778616,160.02,159.97,36.43778616]
[1746720481157,172.83778616,160.06,159.99,26.0]
[1746720481376,36.43778616,160.02,159.97,26.0]
[1746720481558,36.43778616,160.0,159.95,26.0]
[1746720481759,136.4,160.01,159.93,1.6257]
[1746720481760,36.43778616,159.99,159.93,1.6257]
[1746720482059,36.43778616,159.97,159.92,26.0]
[1746720482259,172.83778616,159.96,159.92,23.46235447]
[1746720482458,136.4,159.96,159.92,23.46235447]
[1746720482703,172.83778616,159.96,159.89,6.25429983]
[1746720482872,36.43778616,159.94,159.88,7.84730643]
[1746720483074,6.25273557,159.93,159.89,36.43778616]
[1746720483282,6.25195373,159.95,159.91,36.43778616]
[1746720483491,136.4,159.96,159.88,7.84719247]
[1746720483694,136.4,159.96,159.94,36.43778616]
[1746720484286,136.4,159.96,159.95,36.43778616]
[1746720484474,136.4,159.96,159.94,36.43778616]
[1746720484676,136.4,159.96,159.93,26.0]
[1746720484992,136.4,159.96,159.95,36.43778616]
[1746720485195,25.7,159.99,159.98,26.0]
[1746720485374,136.4,160.02,159.98,62.43778616]
[1746720485699,136.4,160.02,160.01,36.43778616]
[1746720486077,136.4,160.02,160.01,62.43778616]
[1746720486793,142.6468416,160.09,160.01,62.43778616]
[1746720486994,136.4,160.09,160.07,36.43778616]
[1746720487176,136.4,160.09,160.04,26.0]
[1746720487380,36.43778616,160.05,160.01,26.0]
[1746720487587,36.43778616,160.04,160.0,26.0]
[1746720487776,36.43778616,160.05,160.0,62.43778616]
[1746720487970,136.4,160.08,160.0,26.0]
[1746720488298,36.43778616,160.06,160.0,26.0]
[1746720488495,36.43778616,160.06,160.01,36.43778616]
[1746720488692,36.43778616,160.06,160.0,26.0]
[1746720488693,36.43778616,160.04,160.0,26.0]
[1746720488882,36.43778616,160.05,160.0,62.43778616]
[1746720489077,6.24960939,160.01,159.95,6.3807]
[1746720489270,6.24960939,160.01,159.98,36.43778616]
[1746720489587,42.68739555,160.01,159.94,7.88233864]
[1746720489790,42.68739555,160.01,159.96,36.43778616]
[1746720490192,6.24960939,160.01,159.97,36.43778616]
[1746720490395,136.4,160.04,159.98,36.43778616]
[1746720490579,136.4,160.04,159.99,36.43778616]
[1746720490783,172.83778616,160.03,159.99,36.43778616]
[1746720490981,136.4,160.03,159.99,36.43778616]
[1746720491190,136.4,160.03,160.01,36.43778616]
[1746720491374,136.07024827,160.03,160.01,36.43778616]
[1746720491579,36.43778616,160.05,160.01,36.43778616]
[1746720491778,36.43778616,160.03,159.98,36.43778616]
[1746720492088,36.43778616,160.04,159.99,36.43778616]
[1746720492477,21.86691139,160.06,159.96,26.0]
[1746720492478,172.50803443,160.03,159.96,26.0]
[1746720492673,172.50803443,160.03,159.98,36.43778616]
[1746720493291,36.43778616,160.0,159.94,1.63]
[1746720493495,172.50803443,159.99,159.91,6.25325028]
[1746720493680,136.07024827,159.99,159.95,36.43778616]
[1746720493994,136.07024827,159.99,159.94,26.0]
[1746720493995,136.07024827,159.99,159.96,36.43778616]
[1746720494221,136.07024827,159.99,159.98,36.43778616]
[1746720494399,31.94921884,160.02,159.98,36.43778616]
[1746720495297,136.4,160.01,160.0,36.43778616]
[1746720495601,142.6496124,160.01,159.98,36.43778616]
[1746720495802,142.6496124,160.01,159.99,36.43778616]
[1746720496006,136.4,160.01,160.0,36.43778616]
[1746720496382,142.64969472,160.01,159.99,36.43778616]
[1746720496915,142.64969472,160.01,160.0,36.43778616]
[1746720497783,142.64960939,160.01,159.94,26.0]
[1746720498101,55.08743502,159.99,159.89,58.1466]
[1746720498396,172.83778616,159.98,159.93,36.43778616]
[1746720498570,172.83778616,159.98,159.9,2.27404251]
[1746720498571,136.4,159.97,159.95,36.43778616]
[1746720498771,136.4,159.97,159.92,26.0]
[1746720498995,136.4,159.97,159.94,36.43778616]
[1746720499376,136.4,159.97,159.93,36.43778616]
[1746720499697,136.4,159.96,159.95,36.43778616]
[1746720499904,136.4,159.96,159.95,62.43778616]
[1746720500092,25.7,160.02,159.95,62.43778616]
[1746720500093,136.4,160.01,159.95,62.43778616]
[1746720500298,6.24843789,160.04,160.0,36.43778616]
[1746720500593,18.64964886,160.03,159.99,36.43778616]
[1746720500913,6.24843789,160.04,160.01,36.43778616]
[1746720501194,6.24812414,160.05,160.02,36.43778616]
[1746720501395,21.86824285,160.05,159.97,26.0]
[1746720501582,21.86824285,160.05,160.01,36.43778616]
[1746720501780,55.08743502,160.04,160.0,36.43778616]
[1746720502001,18.64964886,160.0,159.95,36.43778616]
[1746720502205,36.43778616,159.97,159.92,36.43778616]
[1746720502977,55.08743502,159.98,159.93,36.43778616]
[1746720503295,136.4,159.99,159.95,36.43778616]
[1746720503694,142.65070912,159.99,159.95,36.43778616]
[1746720504103,142.65070912,159.99,159.93,6.25271063]
[1746720504301,136.4,159.99,159.97,36.43778616]
[1746720504503,136.4,159.99,159.93,32.25271063]
[1746720504701,142.65055998,159.99,159.97,36.43778616]
[1746720505004,136.4,159.99,159.98,36.43778616]
[1746720507196,136.4,159.99,159.94,6.25223361]
[1746720507395,136.4,159.99,159.98,36.43778616]
[1746720509248,142.65039064,159.99,159.97,36.43778616]
[1746720509399,142.65039064,159.99,159.96,36.43778616]
[1746720509600,142.65039064,159.99,159.92,42.69080014]
[1746720509799,142.65039064,159.99,159.97,36.43778616]
[1746720510918,142.65039064,159.99,159.93,32.25265718]
[1746720510919,136.4,159.99,159.98,36.43778616]
[1746720512214,6.2496817,160.01,159.94,50.0]
[1746720512215,136.4,159.98,159.94,26.0]
[1746720512525,136.4,159.98,159.97,36.43778616]
[1746720515430,136.4,159.98,159.96,36.43778616]
[1746720515629,142.65078134,159.98,159.95,36.43778616]
[1746720515830,172.83778616,159.97,159.89,14.40089033]
[1746720516036,172.83778616,159.96,159.91,36.43778616]
[1746720516219,6.25195373,159.95,159.91,36.43778616]
[1746720516419,6.25195373,159.95,159.93,36.43778616]
[1746720516911,6.25195373,159.95,159.89,26.0]
[1746720517112,172.83778616,159.94,159.89,36.43778616]
[1746720517311,191.48743502,159.93,159.85,6.6254]
[1746720517514,191.48743502,159.93,159.84,97.54774826]
[1746720517515,36.43778616,159.92,159.88,36.43778616]
[1746720517709,136.4,159.93,159.9,36.43778616]
[1746720517943,136.4,159.93,159.92,36.43778616]
[1746720518538,6.25117209,159.97,159.92,36.43778616]
[1746720518717,36.43778616,159.95,159.88,26.0]
[1746720519044,172.83778616,159.94,159.89,36.43778616]
[1746720519243,136.4,159.94,159.91,36.43778616]
[1746720519414,136.4,159.94,159.92,36.43778616]
[1746720519616,136.4,159.94,159.88,26.0]
[1746720519813,136.4,159.94,159.91,36.43778616]
[1746720520248,136.4,159.94,159.92,36.43778616]
[1746720520633,142.65244615,159.94,159.92,36.43778616]
[1746720520832,136.4,159.94,159.92,36.43778616]